fUSD/lending_fUSD_20260512
["ID","MTS","AMOUNT","RATE_DAILY","PERIOD"]
[422083210,1778557844000,-1562.0,0.00038356,30]
[422083216,1778557844000,-650.0,0.0003837,5]
[422083206,1778557844000,-231.88832598,0.00038356,4]
[422083215,1778557844000,-550.0,0.00038367,5]
[422083212,1778557844000,-250.0,0.00038359,5]
[422083214,1778557844000,-450.0,0.00038364,5]
[422083213,1778557844000,-350.0,0.00038362,5]
[422083211,1778557844000,-150.0,0.00038356,5]
[422083218,1778557844000,-1065.11,0.00038419,2]
[422083226,1778557844000,-167.75,0.00038455,13]
[422083220,1778557844000,-1065.11,0.00038421,2]
[422083227,1778557844000,-261.68,0.00038455,13]
[422083219,1778557844000,-1065.11,0.00038419,2]
[422083217,1778557844000,-701.35194092,0.00038373,5]
[422083228,1778557844000,-3108.1794,0.00038488,2]
[422083225,1778557844000,-1065.11,0.00038423,2]
[422083223,1778557844000,-1065.1,0.00038423,2]
[422083221,1778557844000,-1065.11,0.00038421,2]
[422083222,1778557844000,-1065.11,0.00038421,2]
[422083224,1778557844000,-1065.11,0.00038423,2]
[422083229,1778557844000,-269.189159,0.00038493,30]
[422083230,1778557844000,-269.189159,0.00038493,30]
[422083232,1778557844000,-151.000007,0.00038493,30]
[422083231,1778557844000,-269.189159,0.00038493,30]
[422083173,1778557844000,-191.91529612,0.00037628,2]
[422083208,1778557844000,-151.0,0.00038356,30]
[422083205,1778557844000,-150.0,0.00038356,4]
[422083149,1778557844000,-300.0,0.00037048,2]
[422083203,1778557844000,-1000.0,0.00038356,7]
[422083204,1778557844000,-931.8569684,0.00038356,7]
[422083175,1778557844000,-250.0,0.00037808,120]
[422083169,1778557844000,-159.12149317,0.00037258,2]
[422083172,1778557844000,-1054.0,0.00037506,30]
[422083178,1778557844000,-867.0,0.00037836,30]
[422083176,1778557844000,-165.48,0.00037811,2]
[422083183,1778557844000,-2661.82,0.000381,14]
[422083193,1778557844000,-500.0,0.00038356,2]
[422083182,1778557844000,-275.32714793,0.000381,33]
[422083186,1778557844000,-1419.0,0.00038329,120]
[422083191,1778557844000,-3108.1794,0.00038351,2]
[422083188,1778557844000,-1415.0,0.00038329,120]
[422083189,1778557844000,-1415.0,0.00038329,120]
[422083177,1778557844000,-435.0,0.00037836,30]
[422083185,1778557844000,-1419.0,0.00038329,120]
[422083199,1778557844000,-299.42619551,0.00038356,2]
[422083201,1778557844000,-250.0,0.00038356,120]
[422083202,1778557844000,-1000.0,0.00038356,7]
[422083198,1778557844000,-500.0,0.00038356,2]
[422083190,1778557844000,-39326.1736,0.00038333,30]
[422083196,1778557844000,-500.0,0.00038356,2]
[422083200,1778557844000,-505.95760392,0.00038356,2]
[422083194,1778557844000,-500.0,0.00038356,2]
[422083195,1778557844000,-500.0,0.00038356,2]
[422083187,1778557844000,-158.82843331,0.00038329,120]
[422083192,1778557844000,-500.0,0.00038356,120]
[422083184,1778557844000,-534.4,0.00038125,30]
[422083197,1778557844000,-500.0,0.00038356,2]
[422083270,1778557845000,-200.0,0.000389,6]
[422083273,1778557845000,-374.05077924,0.00038904,120]
[422083269,1778557845000,-200.0,0.000389,6]
[422083266,1778557845000,-3108.1794,0.00038899,2]
[422083264,1778557845000,-3108.1794,0.00038762,2]
[422083272,1778557845000,-700.0,0.000389,14]
[422083265,1778557845000,-723.17,0.00038774,90]
[422083274,1778557845000,-1562.0,0.00038904,30]
[422083263,1778557845000,-614.79,0.000387,60]
[422083271,1778557845000,-2000.0,0.000389,7]
[422083268,1778557845000,-200.0,0.000389,6]
[422083267,1778557845000,-200.0,0.000389,6]
[422083280,1778557845000,-3108.1794,0.00039036,2]
[422083277,1778557845000,-1121.2875692,0.00039,7]
[422083279,1778557845000,-166.0,0.0003903,11]
[422083282,1778557845000,-257.64710553,0.0003904,30]
[422083285,1778557845000,-3989.35,0.0003911,120]
[422083283,1778557845000,-257.64710553,0.0003904,30]
[422083286,1778557845000,-3108.1794,0.00039173,2]
[422083281,1778557845000,-257.64710553,0.0003904,30]
[422083284,1778557845000,-194.82682534,0.000391,30]
[422083276,1778557845000,-20000.0,0.00039,2]
[422083287,1778557845000,-1562.0,0.00039178,30]
[422083289,1778557845000,-602.743928,0.00039249,2]
[422083261,1778557845000,-1562.0,0.0003863,30]
[422083275,1778557845000,-160.37,0.00039,120]
[422083260,1778557845000,-3108.1794,0.00038625,2]
[422083249,1778557845000,-474.041222,0.00038493,7]
[422083259,1778557845000,-9185.05,0.00038556,90]
[422083233,1778557845000,-269.189159,0.00038493,30]
[422083238,1778557845000,-347.517931,0.00038493,30]
[422083239,1778557845000,-347.517931,0.00038493,30]
[422083236,1778557845000,-151.0,0.00038493,30]
[422083237,1778557845000,-151.0,0.00038493,30]
[422083234,1778557845000,-151.0,0.00038493,30]
[422083235,1778557845000,-151.0,0.00038493,30]
[422083241,1778557845000,-347.517931,0.00038493,30]
[422083251,1778557845000,-151.0,0.00038493,30]
[422083240,1778557845000,-347.517931,0.00038493,30]
[422083242,1778557845000,-1136.281255,0.00038493,28]
[422083243,1778557845000,-1136.281255,0.00038493,28]
[422083262,1778557845000,-1000.0,0.00038659,120]
[422083247,1778557845000,-474.041222,0.00038493,7]
[422083244,1778557845000,-1136.281255,0.00038493,28]
[422083246,1778557845000,-474.041222,0.00038493,7]
[422083245,1778557845000,-1136.281255,0.00038493,28]
[422083248,1778557845000,-474.041222,0.00038493,7]
[422083250,1778557845000,-151.0,0.00038493,30]
[422083252,1778557845000,-151.0,0.00038493,30]
[422083254,1778557845000,-2710.3719844,0.00038493,2]
[422083255,1778557845000,-137022.7462702,0.00038493,2]
[422083256,1778557845000,-6482.3658458,0.00038493,2]
[422083253,1778557845000,-151.0,0.00038493,30]
[422083257,1778557845000,-24493.169333,0.00038493,2]
[422083258,1778557845000,-1173.6456644,0.00038493,2]
[422083300,1778557845000,-5000.0,0.00039536,2]
[422083299,1778557845000,-5000.0,0.00039536,2]
[422083278,1778557845000,-625.62,0.00039,30]
[422083293,1778557845000,-3108.1794,0.00039447,2]
[422083323,1778557845000,-50000.0,0.00039808,60]
[422083321,1778557845000,-151.0,0.00039808,30]
[422083325,1778557845000,-30223.55,0.00039808,60]
[422083328,1778557845000,-5800.0,0.00039832,14]
[422083330,1778557845000,-5800.0,0.00039849,14]
[422083327,1778557845000,-5800.0,0.00039824,14]
[422083326,1778557845000,-5800.0,0.00039815,14]
[422083329,1778557845000,-5800.0,0.00039841,14]
[422083331,1778557845000,-5800.0,0.00039858,14]
[422083332,1778557845000,-3108.1794,0.00039858,2]
[422083334,1778557845000,-237.23936,0.000399,120]
[422083333,1778557845000,-9185.05,0.00039861,120]
[422083335,1778557845000,-165.51231,0.000399,120]
[422083337,1778557845000,-25000.0,0.0003999,15]
[422083336,1778557845000,-5580.70732907,0.000399,120]
[422083340,1778557845000,-19234.67559057,0.00039999,15]
[422083345,1778557845000,-22499.99,0.0004,120]
[422083339,1778557845000,-25000.0,0.00039999,15]
[422083343,1778557845000,-2054.61230019,0.0004,120]
[422083338,1778557845000,-3108.1794,0.00039995,2]
[422083342,1778557845000,-161.0,0.0004,120]
[422083346,1778557845000,-207.11,0.0004,120]
[422083344,1778557845000,-159.2,0.0004,7]
[422083341,1778557845000,-1562.0,0.0004,30]
[422083347,1778557845000,-754.86,0.0004,120]
[422083294,1778557845000,-1562.0,0.00039452,30]
[422083349,1778557845000,-22500.0,0.0004,120]
[422083320,1778557845000,-151.0,0.00039808,30]
[422083315,1778557845000,-5800.0,0.00039781,14]
[422083348,1778557845000,-22499.99,0.0004,120]
[422083319,1778557845000,-5800.0,0.00039807,14]
[422083322,1778557845000,-151.0,0.00039808,30]
[422083292,1778557845000,-3989.38,0.00039435,120]
[422083288,1778557845000,-38542.17374256,0.00039249,2]
[422083290,1778557845000,-3108.1794,0.0003931,2]
[422083297,1778557845000,-5000.0,0.00039536,2]
[422083295,1778557845000,-2661.82,0.000395,14]
[422083298,1778557845000,-5000.0,0.00039536,2]
[422083296,1778557845000,-5026.19770332,0.00039536,2]
[422083301,1778557845000,-3108.1794,0.00039584,2]
[422083312,1778557845000,-300.0,0.00039726,120]
[422083302,1778557845000,-937.0936,0.00039618,30]
[422083306,1778557845000,-1253.0001,0.00039716,120]
[422083303,1778557845000,-150.0,0.00039669,2]
[422083291,1778557845000,-557.21123289,0.00039356,2]
[422083310,1778557845000,-300.0,0.00039726,120]
[422083316,1778557845000,-5800.0,0.0003979,14]
[422083317,1778557845000,-434.45001652,0.00039798,2]
[422083318,1778557845000,-5800.0,0.00039798,14]
[422083324,1778557845000,-759.04,0.00039808,60]
[422083314,1778557845000,-3989.38,0.0003976,120]
[422083313,1778557845000,-1000.0,0.00039759,120]
[422083309,1778557845000,-300.0,0.00039726,120]
[422083308,1778557845000,-1562.0,0.00039726,30]
[422083307,1778557845000,-3108.1794,0.00039721,2]
[422083305,1778557845000,-500.0,0.00039671,60]
[422083304,1778557845000,-500.0,0.00039671,60]
[422083311,1778557845000,-300.0,0.00039726,120]
[422083387,1778557846000,-6002.44267792,0.00040172,12]
[422083393,1778557846000,-6002.44267792,0.00040172,12]
[422083390,1778557846000,-6002.44267792,0.00040172,12]
[422083389,1778557846000,-6002.44267792,0.00040172,12]
[422083380,1778557846000,-5027.373871,0.0004,20]
[422083388,1778557846000,-6002.44267792,0.00040172,12]
[422083382,1778557846000,-2987.6011,0.00040053,30]
[422083384,1778557846000,-3989.38,0.00040085,120]
[422083383,1778557846000,-717.3645631,0.00040076,2]
[422083392,1778557846000,-6002.44267792,0.00040172,12]
[422083385,1778557846000,-3108.1794,0.00040132,2]
[422083386,1778557846000,-6002.44267795,0.00040172,12]
[422083403,1778557846000,-500.0,0.0004031,30]
[422083402,1778557846000,-500.54726343,0.0004031,30]
[422083405,1778557846000,-254.52,0.00040358,10]
[422083401,1778557846000,-193.03,0.000403,17]
[422083404,1778557846000,-271.94,0.00040358,10]
[422083399,1778557846000,-900.24,0.0004029,60]
[422083396,1778557846000,-1562.0,0.00040274,30]
[422083394,1778557846000,-180.0,0.000402,10]
[422083398,1778557846000,-739.14,0.0004029,60]
[422083395,1778557846000,-3108.1803,0.00040269,2]
[422083400,1778557846000,-7216.0,0.0004029,120]
[422083397,1778557846000,-280.79,0.0004029,60]
[422083381,1778557846000,-5027.373871,0.0004,20]
[422083391,1778557846000,-6002.44267792,0.00040172,12]
[422083379,1778557846000,-5027.373871,0.0004,20]
[422083363,1778557846000,-500.0,0.0004,120]
[422083377,1778557846000,-5027.373871,0.0004,20]
[422083410,1778557846000,-12404.93,0.000405,120]
[422083359,1778557846000,-1121.0,0.0004,30]
[422083358,1778557846000,-20155.46757091,0.0004,120]
[422083357,1778557846000,-22499.98,0.0004,120]
[422083354,1778557846000,-12994.02,0.0004,120]
[422083350,1778557846000,-213.21,0.0004,120]
[422083353,1778557846000,-816.7,0.0004,120]
[422083356,1778557846000,-152.0,0.0004,120]
[422083351,1778557846000,-400.88,0.0004,120]
[422083355,1778557846000,-161.0,0.0004,120]
[422083352,1778557846000,-17572.46,0.0004,120]
[422083360,1778557846000,-2048.39887577,0.0004,120]
[422083378,1778557846000,-5027.373871,0.0004,20]
[422083362,1778557846000,-500.0,0.0004,120]
[422083361,1778557846000,-500.0,0.0004,120]
[422083365,1778557846000,-500.0,0.0004,120]
[422083368,1778557846000,-500.0,0.0004,120]
[422083366,1778557846000,-500.0,0.0004,120]
[422083369,1778557846000,-500.0,0.0004,120]
[422083370,1778557846000,-500.0,0.0004,120]
[422083371,1778557846000,-500.0,0.0004,120]
[422083376,1778557846000,-5027.373871,0.0004,20]
[422083373,1778557846000,-218.15135435,0.0004,120]
[422083375,1778557846000,-5027.373871,0.0004,20]
[422083372,1778557846000,-500.0,0.0004,120]
[422083374,1778557846000,-5027.373871,0.0004,20]
[422083364,1778557846000,-500.0,0.0004,120]
[422083406,1778557846000,-3989.38,0.0004041,120]
[422083367,1778557846000,-500.0,0.0004,120]
[422083409,1778557846000,-2000.0,0.000405,60]
[422083439,1778557846000,-3822.63757246,0.00040744,7]
[422083443,1778557846000,-3822.63757246,0.00040744,7]
[422083446,1778557846000,-3822.63757246,0.00040744,7]
[422083442,1778557846000,-3822.63757246,0.00040744,7]
[422083452,1778557846000,-151.0,0.00040744,30]
[422083444,1778557846000,-3822.63757246,0.00040744,7]
[422083445,1778557846000,-3822.63757246,0.00040744,7]
[422083447,1778557846000,-3822.63757246,0.00040744,7]
[422083467,1778557846000,-1265.0,0.000408,14]
[422083449,1778557846000,-2778.80355088,0.00040744,7]
[422083448,1778557846000,-3822.63757246,0.00040744,7]
[422083450,1778557846000,-151.0,0.00040744,30]
[422083441,1778557846000,-3822.63757246,0.00040744,7]
[422083451,1778557846000,-151.0,0.00040744,30]
[422083459,1778557846000,-5027.373871,0.00040744,20]
[422083456,1778557846000,-347.517931,0.00040744,30]
[422083457,1778557846000,-347.517931,0.00040744,30]
[422083458,1778557846000,-5027.373871,0.00040744,20]
[422083466,1778557846000,-2661.82,0.000408,14]
[422083464,1778557846000,-189.55,0.0004075,120]
[422083465,1778557846000,-318.45343967,0.00040769,120]
[422083462,1778557846000,-5027.373871,0.00040744,20]
[422083461,1778557846000,-5027.373871,0.00040744,20]
[422083460,1778557846000,-347.517931,0.00040744,30]
[422083463,1778557846000,-324.45,0.0004075,120]
[422083417,1778557846000,-1136.281255,0.000405,28]
[422083455,1778557846000,-347.517931,0.00040744,30]
[422083438,1778557846000,-3822.63757246,0.00040744,7]
[422083453,1778557846000,-151.0,0.00040744,30]
[422083440,1778557846000,-3822.63757246,0.00040744,7]
[422083415,1778557846000,-1136.281255,0.000405,28]
[422083408,1778557846000,-1483.54939322,0.00040477,120]
[422083411,1778557846000,-33871.5060622,0.000405,120]
[422083407,1778557846000,-178.99855138,0.00040446,120]
[422083414,1778557846000,-1136.281255,0.000405,28]
[422083412,1778557846000,-170.0,0.000405,120]
[422083413,1778557846000,-700.0,0.000405,14]
[422083431,1778557846000,-700.0,0.000406,14]
[422083419,1778557846000,-474.041222,0.000405,7]
[422083421,1778557846000,-474.041222,0.000405,7]
[422083420,1778557846000,-474.041222,0.000405,7]
[422083418,1778557846000,-474.041222,0.000405,7]
[422083422,1778557846000,-151.0,0.000405,30]
[422083429,1778557846000,-1562.0,0.00040548,30]
[422083416,1778557846000,-1136.281255,0.000405,28]
[422083426,1778557846000,-268.7,0.0004054,120]
[422083428,1778557846000,-1734.62772924,0.00040547,30]
[422083435,1778557846000,-3989.38,0.00040735,120]
[422083432,1778557846000,-1444.0,0.00040658,120]
[422083436,1778557846000,-3822.63757246,0.00040744,7]
[422083434,1778557846000,-700.0,0.000407,14]
[422083433,1778557846000,-1061.0,0.000407,30]
[422083430,1778557846000,-161.0,0.000406,120]
[422083425,1778557846000,-171.81453,0.000405,30]
[422083423,1778557846000,-151.0,0.000405,30]
[422083424,1778557846000,-151.0,0.000405,30]
[422083427,1778557846000,-451.84223096,0.00040546,30]
[422083437,1778557846000,-3822.63757246,0.00040744,7]
[422083481,1778557847000,-154.78,0.00026272,2]
[422083476,1778557847000,-154.78,0.00026138,2]
[422083482,1778557847000,-154.78,0.00026306,7]
[422083483,1778557847000,-154.78,0.00026339,2]
[422083477,1778557847000,-154.78,0.00026171,2]
[422083475,1778557847000,-154.78,0.00026104,7]
[422083471,1778557847000,-5931.0,0.00040845,30]
[422083472,1778557847000,-1000.0,0.00040859,120]
[422083473,1778557847000,-661.22182006,0.0004086,2]
[422083469,1778557847000,-1562.0,0.00040822,30]
[422083470,1778557847000,-500.0,0.00040822,5]
[422083478,1778557847000,-154.78,0.00026205,7]
[422083474,1778557847000,-537.58322899,0.00040873,12]
[422083479,1778557847000,-152.59588665,0.00026239,7]
[422083486,1778557847000,-152.0,0.00020493,2]
[422083484,1778557847000,-154.78,0.00026373,2]
[422083485,1778557847000,-16.55544324,0.00037048,2]
[422083493,1778557847000,-185.73,0.00024802,7]
[422083495,1778557847000,-152.0,0.00026176,7]
[422083491,1778557847000,-503.0,0.00024397,2]
[422083496,1778557847000,-152.0,0.00026176,7]
[422083492,1778557847000,-185.73,0.00024658,2]
[422083494,1778557847000,-185.86138977,0.00024831,2]
[422083488,1778557847000,-280.79,0.00021273,2]
[422083489,1778557847000,-5.96782011,0.00023973,2]
[422083487,1778557847000,-152.0,0.00020499,2]
[422083497,1778557847000,-152.0,0.00026176,7]
[422083480,1778557847000,-2.18411335,0.00026239,7]
[422083490,1778557847000,-1330.42787521,0.00023973,2]
[422083507,1778557848000,-6072.91,0.00027397,10]
[422083520,1778557848000,-527.0,0.00039861,30]
[422083510,1778557848000,-503.0,0.00032952,10]
[422083506,1778557848000,-154.79,0.00026575,2]
[422083505,1778557848000,-154.78,0.00026541,2]
[422083500,1778557848000,-154.78,0.00026407,7]
[422083503,1778557848000,-154.78,0.00026508,7]
[422083508,1778557848000,-503.0,0.00028674,6]
[422083501,1778557848000,-154.78,0.0002644,7]
[422083504,1778557848000,-503.0,0.00026536,4]
[422083498,1778557848000,-152.0,0.00026194,7]
[422083522,1778557848000,-5000.0,0.00040891,15]
[422083499,1778557848000,-152.0,0.00026194,7]
[422083502,1778557848000,-154.78,0.00026474,2]
[422083509,1778557848000,-503.0,0.00030813,8]
[422083521,1778557848000,-945.71394849,0.00040873,12]
[422083514,1778557848000,-300.0,0.00037048,2]
[422083528,1778557848000,-265641.78897079,0.0004095,60]
[422083527,1778557848000,-152.0,0.00040941,30]
[422083529,1778557848000,-152.0,0.00026213,7]
[422083530,1778557848000,-583.84,0.00032523,2]
[422083526,1778557848000,-661.22182006,0.00040933,2]
[422083525,1778557848000,-691.0,0.000409,30]
[422083524,1778557848000,-341.38972829,0.000409,120]
[422083523,1778557848000,-5389.0,0.000409,120]
[422083513,1778557848000,-300.0,0.00037048,2]
[422083519,1778557848000,-5800.0,0.00039773,14]
[422083516,1778557848000,-300.0,0.00037048,2]
[422083518,1778557848000,-503.0,0.00039367,17]
[422083517,1778557848000,-503.0,0.00037229,15]
[422083515,1778557848000,-1094.29459015,0.00037048,2]
[422083511,1778557848000,-503.0,0.0003509,13]
[422083512,1778557848000,-283.44455676,0.00037048,2]
[422083531,1778558189000,243.75,0.00026824,120]
[422083532,1778558555000,4670.20012795,8e-05,2]
[422083541,1778558974000,-500.0,0.00010699,2]
[422083542,1778558974000,-500.0,0.00010699,2]
[422083540,1778558974000,-500.0,0.00010699,2]
[422083539,1778558974000,-500.0,0.00010699,2]
[422083538,1778558974000,-500.0,0.00010699,2]
[422083536,1778558974000,-150.0,0.00010699,2]
[422083537,1778558974000,-300.0,0.00010699,2]
[422083535,1778558974000,-300.0,0.00010699,2]
[422083534,1778558974000,-938.10380888,0.00010699,2]
[422083533,1778558974000,-158.5,0.00010512,2]
[422083543,1778558974000,-109.97285872,0.00010699,2]
[422083544,1778558981000,-390.02714128,0.00010699,2]
[422083546,1778558981000,-500.0,0.00010699,2]
[422083547,1778558981000,-500.0,0.00010699,2]
[422083548,1778558981000,-500.0,0.00010699,2]
[422083550,1778558981000,-500.0,0.00010699,2]
[422083545,1778558981000,-500.0,0.00010699,2]
[422083549,1778558981000,-500.0,0.00010699,2]
[422083554,1778558981000,-178.4686307,0.00010699,2]
[422083556,1778558981000,-4431.50422802,0.000107,2]
[422083551,1778558981000,-500.0,0.00010699,2]
[422083553,1778558981000,-500.0,0.00010699,2]
[422083555,1778558981000,-500.0,0.00010699,2]
[422083552,1778558981000,-500.0,0.00010699,2]
[422083557,1778558982000,-10000.0,0.000107,2]
[422083559,1778558984000,-10000.0,0.000107,2]
[422083558,1778558984000,-10000.0,0.000107,2]
[422083562,1778558985000,-10000.0,0.000107,2]
[422083561,1778558985000,-10000.0,0.000107,2]
[422083560,1778558985000,-10000.0,0.000107,2]
[422083565,1778558986000,-10000.0,0.000107,2]
[422083564,1778558986000,-10000.0,0.000107,2]
[422083563,1778558986000,-10000.0,0.000107,2]
[422083568,1778558987000,-10000.0,0.000107,2]
[422083567,1778558987000,-10000.0,0.000107,2]
[422083566,1778558987000,-10000.0,0.000107,2]
[422083569,1778558988000,-10000.0,0.000107,2]
[422083571,1778558988000,-10000.0,0.000107,2]
[422083570,1778558988000,-10000.0,0.000107,2]
[422083573,1778558989000,-10000.0,0.000107,2]
[422083572,1778558989000,-10000.0,0.000107,2]
[422083574,1778558993000,-10000.0,0.000107,2]
[422083575,1778558994000,-10000.0,0.000107,2]
[422083578,1778558997000,-10000.0,0.000107,2]
[422083577,1778558997000,-10000.0,0.000107,2]
[422083576,1778558997000,-10000.0,0.000107,2]
[422083580,1778558998000,-10000.0,0.000107,2]
[422083579,1778558998000,-10000.0,0.000107,2]
[422083584,1778558999000,-10000.0,0.000107,2]
[422083583,1778558999000,-10000.0,0.000107,2]
[422083582,1778558999000,-10000.0,0.000107,2]
[422083581,1778558999000,-10000.0,0.000107,2]
[422083585,1778559000000,-10000.0,0.000107,2]
[422083586,1778559000000,-10000.0,0.000107,2]
[422083587,1778559000000,-10000.0,0.000107,2]
[422083588,1778559001000,-10000.0,0.000107,2]
[422083589,1778559001000,-300.0,0.00010699,2]
[422083591,1778559001000,-8500.0,0.000107,2]
[422083592,1778559001000,-10000.0,0.000107,2]
[422083590,1778559001000,-1200.0,0.00010699,2]
[422083593,1778559002000,-10000.0,0.000107,2]
[422083594,1778559005000,-10000.0,0.000107,2]
[422083595,1778559006000,-10000.0,0.000107,2]
[422083596,1778559007000,-10000.0,0.000107,2]
[422083597,1778559008000,-10000.0,0.000107,2]
[422083598,1778559011000,-10000.0,0.000107,2]
[422083601,1778559012000,-10000.0,0.000107,2]
[422083600,1778559012000,-10000.0,0.000107,2]
[422083599,1778559012000,-10000.0,0.000107,2]
[422083603,1778559013000,-10000.0,0.000107,2]
[422083602,1778559013000,-10000.0,0.000107,2]
[422083604,1778559014000,-10000.0,0.000107,2]
[422083605,1778559014000,-10000.0,0.000107,2]
[422083606,1778559014000,-10000.0,0.000107,2]
[422083607,1778559016000,-10000.0,0.000107,2]
[422083623,1778559033000,-151.0,0.00015756,2]
[422083626,1778559033000,-151.0,0.00015756,2]
[422083624,1778559033000,-151.0,0.00015756,2]
[422083625,1778559033000,-151.0,0.00015756,2]
[422083621,1778559033000,-1503.81690895,0.00014436,2]
[422083622,1778559033000,-11904.2291496,0.00014436,2]
[422083620,1778559033000,-163.13,0.000137,2]
[422083615,1778559033000,-150.0,0.00011353,2]
[422083616,1778559033000,-255.0,0.00011737,2]
[422083619,1778559033000,-372.0,0.00012871,2]
[422083617,1778559033000,-370.0,0.00011769,2]
[422083614,1778559033000,-13408.0460586,0.00011253,2]
[422083612,1778559033000,-45369.86433592,0.000107,2]
[422083613,1778559033000,-163.34,0.000107,2]
[422083618,1778559033000,-250.0,0.0001177,2]
[422083627,1778559033000,-151.0,0.00015756,2]
[422083630,1778559033000,-600.0,0.00015758,2]
[422083629,1778559033000,-153.76414991,0.00015756,2]
[422083628,1778559033000,-151.0,0.00015756,2]
[422083644,1778559033000,-9999.99,0.00016922,2]
[422083645,1778559033000,-373.27912327,0.00017363,2]
[422083643,1778559033000,-208.29546343,0.00016815,2]
[422083641,1778559033000,-1000.0,0.00016815,2]
[422083640,1778559033000,-175.42,0.00016712,2]
[422083639,1778559033000,-158.65429385,0.00016438,30]
[422083642,1778559033000,-1000.0,0.00016815,2]
[422083638,1778559033000,-646.5,0.00016438,2]
[422083636,1778559033000,-500.0,0.00016267,2]
[422083632,1778559033000,-150.38783704,0.000159,2]
[422083634,1778559033000,-500.62640559,0.00016267,2]
[422083635,1778559033000,-500.0,0.00016267,2]
[422083633,1778559033000,-500.0,0.00016267,2]
[422083631,1778559033000,-385.17,0.00015758,2]
[422083637,1778559033000,-500.0,0.00016267,2]
[422083664,1778559034000,-234.28422149,0.00019006,2]
[422083662,1778559034000,-203.55581159,0.00019006,2]
[422083656,1778559034000,-646.5,0.0001841,2]
[422083671,1778559034000,-150.0,0.00019529,2]
[422083660,1778559034000,-175.59,0.00018846,2]
[422083669,1778559034000,-156.51155349,0.00019529,4]
[422083658,1778559034000,-2500.0,0.00018458,2]
[422083666,1778559034000,-500.0,0.00019303,2]
[422083659,1778559034000,-280.79,0.0001872,2]
[422083653,1778559034000,-417.54,0.00017802,2]
[422083657,1778559034000,-162.27,0.00018458,2]
[422083654,1778559034000,-312.89,0.00017908,2]
[422083649,1778559034000,-20346.51,0.00017609,2]
[422083648,1778559034000,-150.0,0.000174,2]
[422083646,1778559034000,-1500.0,0.00017363,2]
[422083652,1778559034000,-5063.38,0.00017777,2]
[422083681,1778559034000,-150.0,0.00019684,4]
[422083651,1778559034000,-9850.81487791,0.00017619,2]
[422083650,1778559034000,-3557.23118064,0.00017619,2]
[422083647,1778559034000,-1000.0,0.00017389,2]
[422083655,1778559034000,-2000.0,0.00017911,2]
[422083674,1778559034000,-150.0,0.00019529,2]
[422083673,1778559034000,-150.0,0.00019529,2]
[422083676,1778559034000,-150.0,0.00019529,2]
[422083698,1778559034000,-525.79675041,0.000199,2]
[422083699,1778559034000,-552.0,0.000199,2]
[422083697,1778559034000,-3777.48810697,0.000199,2]
[422083695,1778559034000,-605.6100191,0.000199,2]
[422083672,1778559034000,-150.0,0.00019529,2]
[422083692,1778559034000,-1190.69306236,0.000199,2]
[422083687,1778559034000,-150.0,0.00019876,4]
[422083689,1778559034000,-37.42430646,0.0001989,4]
[422083688,1778559034000,-112.57569354,0.0001989,4]
[422083690,1778559034000,-150.0,0.0001989,4]
[422083696,1778559034000,-1272.80387378,0.000199,2]
[422083686,1778559034000,-150.0,0.00019839,4]